[Event "Titled Tuesday Blitz June 13 Late 2023"]
[White "Sairam, Pranav"]
[Black "HamedWafa4"]
[WhiteFideId "30951330"]
[WhiteElo "1918"]
[BlackElo "2511"]
[Result "0-1"]
[Round "2"]
[TimeControl "180+2"]
[Date "2023.06.13"]
[WhiteClock "0:00:52"]
[BlackClock "0:01:53"]
[Board "149"]

1. e4 {[%clk 0:03:00]}  e5 {[%clk 0:02:57]} 2. Nf3 {[%clk 0:02:57]}  Nc6 {[%clk 0:02:54]} 3. Bb5 {[%clk 0:02:55]}  a6 {[%clk 0:02:54]} 4. Bxc6 {[%clk 0:02:56]}  dxc6 {[%clk 0:02:54]} 5. Nc3 {[%clk 0:02:56]}  f6 {[%clk 0:02:49]} 6. O-O {[%clk 0:02:53]}  Bg4 {[%clk 0:02:48]} 7. h3 {[%clk 0:02:52]}  Bh5 {[%clk 0:02:48]} 8. Re1 {[%clk 0:02:40]}  c5 {[%clk 0:02:48]} 9. Re3 {[%clk 0:02:39]}  Bd6 {[%clk 0:02:42]} 10. Qf1 {[%clk 0:02:36]}  Ne7 {[%clk 0:02:41]} 11. d3 {[%clk 0:02:33]}  Qd7 {[%clk 0:02:39]} 12. Nd2 {[%clk 0:02:29]}  O-O-O {[%clk 0:02:36]} 13. Nc4 {[%clk 0:02:29]}  g5 {[%clk 0:02:31]} 14. Rg3 {[%clk 0:02:09]}  Kb8 {[%clk 0:02:24]} 15. Rb1 {[%clk 0:02:04]}  Bf7 {[%clk 0:02:20]} 16. a3 {[%clk 0:02:02]}  h5 {[%clk 0:02:15]} 17. b4 {[%clk 0:01:58]}  cxb4 {[%clk 0:02:16]} 18. axb4 {[%clk 0:01:58]}  h4 {[%clk 0:02:16]} 19. Rf3 {[%clk 0:01:56]}  g4 {[%clk 0:02:02]} 20. Rxf6 {[%clk 0:01:32]}  gxh3 {[%clk 0:02:00]} 21. Rxf7 {[%clk 0:01:25]}  hxg2 {[%clk 0:01:57]} 22. Qe2 {[%clk 0:00:52]}  Qh3 {[%clk 0:01:53]} 0-1


[Site "https://www.chess.com"]

[Event "Titled Tuesday Blitz June 13 Late 2023"]
[White "Peycheva, Gergana"]
[Black "Kaganskiy, Gleb"]
[WhiteFideId "2916711"]
[BlackFideId "4132025"]
[WhiteElo "2216"]
[BlackElo "2165"]
[Result "1-0"]
[Round "2"]
[TimeControl "180+2"]
[Date "2023.06.13"]
[WhiteClock "0:00:07"]
[BlackClock "0:00:00"]
[Board "150"]

1. d4 {[%clk 0:03:00]}  d5 {[%clk 0:02:57]} 2. c4 {[%clk 0:03:00]}  e6 {[%clk 0:02:57]} 3. Nc3 {[%clk 0:02:59]}  c6 {[%clk 0:02:56]} 4. e3 {[%clk 0:02:56]}  f5 {[%clk 0:02:52]} 5. g4 {[%clk 0:02:51]}  Nf6 {[%clk 0:02:29]} 6. gxf5 {[%clk 0:02:29]}  exf5 {[%clk 0:02:25]} 7. cxd5 {[%clk 0:02:25]}  cxd5 {[%clk 0:02:25]} 8. Bg2 {[%clk 0:02:25]}  Nc6 {[%clk 0:02:23]} 9. Nge2 {[%clk 0:02:24]}  Ne4 {[%clk 0:02:11]} 10. Nf4 {[%clk 0:02:22]}  Bb4 {[%clk 0:02:09]} 11. Bd2 {[%clk 0:02:21]}  Bxc3 {[%clk 0:01:57]} 12. Bxc3 {[%clk 0:02:18]}  Qh4 {[%clk 0:01:58]} 13. Bxe4 {[%clk 0:02:12]}  fxe4 {[%clk 0:01:56]} 14. Nxd5 {[%clk 0:02:05]}  O-O {[%clk 0:01:54]} 15. Nf4 {[%clk 0:01:52]}  Rxf4 {[%clk 0:01:44]} 16. exf4 {[%clk 0:01:50]}  Bg4 {[%clk 0:01:44]} 17. Qb3+ {[%clk 0:01:45]}  Kh8 {[%clk 0:01:44]} 18. Qxb7 {[%clk 0:01:44]}  Rc8 {[%clk 0:01:21]} 19. d5 {[%clk 0:01:42]}  Ne7 {[%clk 0:01:20]} 20. Qxa7 {[%clk 0:00:56]}  e3 {[%clk 0:01:02]} 21. Qxe3 {[%clk 0:00:55]}  Nxd5 {[%clk 0:01:01]} 22. Qe5 {[%clk 0:00:37]}  Nxc3 {[%clk 0:00:56]} 23. bxc3 {[%clk 0:00:36]}  Bh5 {[%clk 0:00:45]} 24. Rb1 {[%clk 0:00:17]}  Qg4 {[%clk 0:00:36]} 25. Kd2 {[%clk 0:00:09]}  Rd8+ {[%clk 0:00:25]} 26. Kc1 {[%clk 0:00:09]}  Qg2 {[%clk 0:00:11]} 27. Re1 {[%clk 0:00:08]}  h6 {[%clk 0:00:10]} 28. Rb8 {[%clk 0:00:08]}  Rxb8 {[%clk 0:00:09]} 29. Qxb8+ {[%clk 0:00:08]}  Kh7 {[%clk 0:00:10]} 30. Qe5 {[%clk 0:00:08]}  Bg6 {[%clk 0:00:06]} 31. f5 {[%clk 0:00:07]}  Qg5+ {[%clk 0:00:06]} 32. f4 {[%clk 0:00:06]}  Qh4 {[%clk 0:00:02]} 33. fxg6+ {[%clk 0:00:06]}  Kxg6 {[%clk 0:00:03]} 34. f5+ {[%clk 0:00:06]}  Kh7 {[%clk 0:00:00]} 35. f6 {[%clk 0:00:07]} 1-0


[Site "https://www.chess.com"]

[Event "Titled Tuesday Blitz June 13 Late 2023"]
[White "Polanco Nunez, Yoel Estarling"]
[Black "Osmak, Yuliia"]
[WhiteFideId "6401783"]
[BlackFideId "14101602"]
[WhiteElo "2132"]
[BlackElo "2303"]
[Result "0-1"]
[Round "2"]
[TimeControl "180+2"]
[Date "2023.06.13"]
[WhiteClock "0:01:21"]
[BlackClock "0:01:37"]
[Board "151"]

1. Nf3 {[%clk 0:02:16]}  c5 {[%clk 0:02:55]} 2. g3 {[%clk 0:02:17]}  Nc6 {[%clk 0:02:54]} 3. Bg2 {[%clk 0:02:18]}  e5 {[%clk 0:02:54]} 4. d3 {[%clk 0:02:18]}  d5 {[%clk 0:02:53]} 5. O-O {[%clk 0:02:19]}  Be7 {[%clk 0:02:52]} 6. e4 {[%clk 0:02:20]}  d4 {[%clk 0:02:51]} 7. Na3 {[%clk 0:02:19]}  h5 {[%clk 0:02:50]} 8. Nc4 {[%clk 0:02:20]}  f6 {[%clk 0:02:43]} 9. a4 {[%clk 0:02:18]}  g5 {[%clk 0:02:41]} 10. Ne1 {[%clk 0:02:18]}  h4 {[%clk 0:02:40]} 11. f4 {[%clk 0:02:18]}  hxg3 {[%clk 0:02:39]} 12. hxg3 {[%clk 0:02:07]}  gxf4 {[%clk 0:02:38]} 13. gxf4 {[%clk 0:02:08]}  exf4 {[%clk 0:02:30]} 14. Bxf4 {[%clk 0:02:07]}  Be6 {[%clk 0:02:30]} 15. Nf3 {[%clk 0:02:00]}  Qd7 {[%clk 0:02:27]} 16. c3 {[%clk 0:01:55]}  O-O-O {[%clk 0:02:18]} 17. cxd4 {[%clk 0:01:55]}  Nxd4 {[%clk 0:02:18]} 18. a5 {[%clk 0:01:50]}  Nh6 {[%clk 0:02:02]} 19. Nxd4 {[%clk 0:01:42]}  Qxd4+ {[%clk 0:01:56]} 20. Be3 {[%clk 0:01:41]}  Qxd3 {[%clk 0:01:54]} 21. Qxd3 {[%clk 0:01:41]}  Rxd3 {[%clk 0:01:55]} 22. Bxh6 {[%clk 0:01:30]}  Rxh6 {[%clk 0:01:51]} 23. Rac1 {[%clk 0:01:29]}  Rg6 {[%clk 0:01:46]} 24. Rf2 {[%clk 0:01:25]}  Rd4 {[%clk 0:01:38]} 25. Kf1 {[%clk 0:01:21]}  Bxc4+ {[%clk 0:01:37]} 0-1


[Site "https://www.chess.com"]

[Event "Titled Tuesday Blitz June 13 Late 2023"]
[White "Yeritsyan, Hayk"]
[Black "Shapiro, Daniel"]
[WhiteFideId "13307320"]
[BlackFideId "2001780"]
[WhiteElo "2506"]
[BlackElo "2325"]
[Result "1/2-1/2"]
[Round "2"]
[TimeControl "180+2"]
[Date "2023.06.13"]
[WhiteClock "0:00:07"]
[BlackClock "0:00:11"]
[Board "153"]

1. d4 {[%clk 0:03:00]}  Nf6 {[%clk 0:02:59]} 2. Nf3 {[%clk 0:03:00]}  b6 {[%clk 0:02:57]} 3. Bf4 {[%clk 0:03:00]}  Bb7 {[%clk 0:02:54]} 4. e3 {[%clk 0:03:01]}  e6 {[%clk 0:02:54]} 5. Nbd2 {[%clk 0:03:00]}  d6 {[%clk 0:02:54]} 6. c3 {[%clk 0:03:00]}  Nbd7 {[%clk 0:02:54]} 7. h3 {[%clk 0:03:01]}  Qe7 {[%clk 0:02:54]} 8. Be2 {[%clk 0:03:01]}  e5 {[%clk 0:02:55]} 9. Bh2 {[%clk 0:03:00]}  g6 {[%clk 0:02:54]} 10. O-O {[%clk 0:02:59]}  Bg7 {[%clk 0:02:54]} 11. Nc4 {[%clk 0:02:59]}  e4 {[%clk 0:02:35]} 12. Nfd2 {[%clk 0:02:59]}  O-O {[%clk 0:02:31]} 13. Rc1 {[%clk 0:02:59]}  h5 {[%clk 0:02:14]} 14. b4 {[%clk 0:02:57]}  a6 {[%clk 0:02:08]} 15. a4 {[%clk 0:02:57]}  Rfe8 {[%clk 0:02:02]} 16. a5 {[%clk 0:02:56]}  b5 {[%clk 0:01:44]} 17. Na3 {[%clk 0:02:56]}  Nf8 {[%clk 0:01:36]} 18. c4 {[%clk 0:02:56]}  c6 {[%clk 0:01:37]} 19. cxb5 {[%clk 0:02:54]}  cxb5 {[%clk 0:01:31]} 20. Qb3 {[%clk 0:02:47]}  Bd5 {[%clk 0:01:27]} 21. Qb2 {[%clk 0:02:46]}  N8h7 {[%clk 0:01:15]} 22. Rc2 {[%clk 0:02:42]}  Ng5 {[%clk 0:01:11]} 23. Rfc1 {[%clk 0:02:41]}  Ra7 {[%clk 0:01:12]} 24. Bf4 {[%clk 0:02:33]}  Nfh7 {[%clk 0:01:05]} 25. Rc8 {[%clk 0:02:30]}  Rxc8 {[%clk 0:00:55]} 26. Rxc8+ {[%clk 0:02:31]}  Bf8 {[%clk 0:00:51]} 27. Bxb5 {[%clk 0:02:11]}  axb5 {[%clk 0:00:50]} 28. Nxb5 {[%clk 0:02:12]}  Rd7 {[%clk 0:00:48]} 29. a6 {[%clk 0:02:12]}  Rd8 {[%clk 0:00:47]} 30. Qc3 {[%clk 0:01:24]}  Ne6 {[%clk 0:00:41]} 31. Bg3 {[%clk 0:01:19]}  Qd7 {[%clk 0:00:38]} 32. Rxd8 {[%clk 0:01:15]}  Qxd8 {[%clk 0:00:38]} 33. a7 {[%clk 0:01:12]}  Qb6 {[%clk 0:00:38]} 34. Qc8 {[%clk 0:00:19]}  Qxb5 {[%clk 0:00:38]} 35. a8=Q {[%clk 0:00:16]}  Bxa8 {[%clk 0:00:37]} 36. Qxa8 {[%clk 0:00:16]}  Qxb4 {[%clk 0:00:38]} 37. Nxe4 {[%clk 0:00:12]}  Kg7 {[%clk 0:00:31]} 38. Qd5 {[%clk 0:00:07]}  Nf6 {[%clk 0:00:28]} 39. Nxf6 {[%clk 0:00:06]}  Kxf6 {[%clk 0:00:28]} 40. Qf3+ {[%clk 0:00:06]}  Kg7 {[%clk 0:00:28]} 41. Kh2 {[%clk 0:00:07]}  Qc4 {[%clk 0:00:21]} 42. Qb7 {[%clk 0:00:06]}  d5 {[%clk 0:00:20]} 43. Qb8 {[%clk 0:00:06]}  Qd3 {[%clk 0:00:18]} 44. Be5+ {[%clk 0:00:06]}  Kg8 {[%clk 0:00:17]} 45. Qb7 {[%clk 0:00:04]}  Qf5 {[%clk 0:00:17]} 46. Qxd5 {[%clk 0:00:04]}  f6 {[%clk 0:00:17]} 47. e4 {[%clk 0:00:04]}  Qg5 {[%clk 0:00:16]} 48. f4 {[%clk 0:00:04]}  Qh6 {[%clk 0:00:15]} 49. Qxe6+ {[%clk 0:00:05]}  Kh7 {[%clk 0:00:12]} 50. Qf7+ {[%clk 0:00:05]}  Bg7 {[%clk 0:00:13]} 51. Bxf6 {[%clk 0:00:05]}  Qxf4+ {[%clk 0:00:13]} 52. Kg1 {[%clk 0:00:06]}  Qxf6 {[%clk 0:00:13]} 53. Qxf6 {[%clk 0:00:05]}  Bxf6 {[%clk 0:00:14]} 54. e5 {[%clk 0:00:06]}  Bg7 {[%clk 0:00:14]} 55. Kf2 {[%clk 0:00:07]}  Kg8 {[%clk 0:00:14]} 56. Kf3 {[%clk 0:00:07]}  Kf7 {[%clk 0:00:14]} 57. Ke4 {[%clk 0:00:08]}  Ke7 {[%clk 0:00:14]} 58. Kd5 {[%clk 0:00:08]}  Bh6 {[%clk 0:00:14]} 59. g4 {[%clk 0:00:08]}  hxg4 {[%clk 0:00:13]} 60. hxg4 {[%clk 0:00:09]}  Be3 {[%clk 0:00:13]} 61. Ke4 {[%clk 0:00:09]}  Bg1 {[%clk 0:00:11]} 62. d5 {[%clk 0:00:10]}  Bh2 {[%clk 0:00:11]} 63. Kd4 {[%clk 0:00:09]}  Bg3 {[%clk 0:00:10]} 64. Ke4 {[%clk 0:00:10]}  Bh2 {[%clk 0:00:11]} 65. Kd4 {[%clk 0:00:08]}  Bg3 {[%clk 0:00:11]} 66. Ke4 {[%clk 0:00:07]}  Bh2 {[%clk 0:00:11]} 1/2-1/2


[Site "https://www.chess.com"]

[Event "Titled Tuesday Blitz June 13 Late 2023"]
[White "Korpics, Zsolt"]
[Black "Perske, Thore"]
[WhiteFideId "705241"]
[BlackFideId "12902195"]
[WhiteElo "2322"]
[BlackElo "2336"]
[Result "0-1"]
[Round "2"]
[TimeControl "180+2"]
[Date "2023.06.13"]
[WhiteClock "0:00:19"]
[BlackClock "0:01:40"]
[Board "154"]

1. e4 {[%clk 0:03:00]}  e6 {[%clk 0:02:59]} 2. d4 {[%clk 0:03:00]}  d5 {[%clk 0:03:00]} 3. Nc3 {[%clk 0:03:00]}  Nf6 {[%clk 0:03:00]} 4. Bg5 {[%clk 0:02:59]}  Bb4 {[%clk 0:02:58]} 5. e5 {[%clk 0:02:59]}  h6 {[%clk 0:02:58]} 6. Bc1 {[%clk 0:02:58]}  Ne4 {[%clk 0:02:58]} 7. Qg4 {[%clk 0:02:56]}  g6 {[%clk 0:02:58]} 8. Ne2 {[%clk 0:02:56]}  c5 {[%clk 0:02:57]} 9. a3 {[%clk 0:02:54]}  Bxc3+ {[%clk 0:02:55]} 10. Nxc3 {[%clk 0:02:50]}  Nxc3 {[%clk 0:02:55]} 11. bxc3 {[%clk 0:02:50]}  Qa5 {[%clk 0:02:56]} 12. Bd2 {[%clk 0:02:50]}  Qa4 {[%clk 0:02:57]} 13. Bd3 {[%clk 0:02:22]}  c4 {[%clk 0:02:56]} 14. Bxg6 {[%clk 0:02:22]}  Rg8 {[%clk 0:02:56]} 15. Bxf7+ {[%clk 0:02:13]}  Kxf7 {[%clk 0:02:57]} 16. Qf3+ {[%clk 0:02:03]}  Ke8 {[%clk 0:02:55]} 17. Qh5+ {[%clk 0:02:01]}  Kd8 {[%clk 0:02:46]} 18. Bxh6 {[%clk 0:01:41]}  Qxc2 {[%clk 0:02:39]} 19. Bg5+ {[%clk 0:01:38]}  Kc7 {[%clk 0:02:31]} 20. Qf7+ {[%clk 0:01:37]}  Bd7 {[%clk 0:02:25]} 21. Qxg8 {[%clk 0:01:32]}  Qxc3+ {[%clk 0:02:20]} 22. Ke2 {[%clk 0:01:32]}  Nc6 {[%clk 0:02:18]} 23. Qg6 {[%clk 0:00:38]}  Nxd4+ {[%clk 0:02:14]} 24. Kd1 {[%clk 0:00:36]}  Qxa1+ {[%clk 0:02:12]} 25. Bc1 {[%clk 0:00:36]}  Ba4+ {[%clk 0:02:04]} 26. Kd2 {[%clk 0:00:33]}  Nb3+ {[%clk 0:02:05]} 27. Ke3 {[%clk 0:00:31]}  Qxe5+ {[%clk 0:01:57]} 28. Kf3 {[%clk 0:00:26]}  Rf8+ {[%clk 0:01:55]} 29. Kg4 {[%clk 0:00:26]}  Nxc1 {[%clk 0:01:41]} 30. Rxc1 {[%clk 0:00:21]}  Qf4+ {[%clk 0:01:41]} 31. Kh3 {[%clk 0:00:19]}  Rh8+ {[%clk 0:01:40]} 0-1


[Site "https://www.chess.com"]

[Event "Titled Tuesday Blitz June 13 Late 2023"]
[White "PushYourPawns0"]
[Black "Fedotov, Nikita"]
[BlackFideId "24161446"]
[WhiteElo "2316"]
[BlackElo "2211"]
[Result "0-1"]
[Round "2"]
[TimeControl "180+2"]
[Date "2023.06.13"]
[WhiteClock "0:00:04"]
[BlackClock "0:00:27"]
[Board "155"]

1. d4 {[%clk 0:03:00]}  Nf6 {[%clk 0:02:59]} 2. c4 {[%clk 0:03:01]}  c5 {[%clk 0:02:58]} 3. d5 {[%clk 0:03:00]}  b5 {[%clk 0:02:59]} 4. cxb5 {[%clk 0:03:01]}  a6 {[%clk 0:03:00]} 5. bxa6 {[%clk 0:03:02]}  g6 {[%clk 0:02:58]} 6. Nc3 {[%clk 0:03:03]}  Bxa6 {[%clk 0:02:57]} 7. e4 {[%clk 0:03:02]}  Bxf1 {[%clk 0:02:58]} 8. Kxf1 {[%clk 0:03:03]}  d6 {[%clk 0:02:58]} 9. Nf3 {[%clk 0:03:03]}  Bg7 {[%clk 0:02:59]} 10. g3 {[%clk 0:03:04]}  Nbd7 {[%clk 0:03:00]} 11. Kg2 {[%clk 0:03:05]}  O-O {[%clk 0:03:01]} 12. a4 {[%clk 0:03:05]}  Ra6 {[%clk 0:03:01]} 13. Qc2 {[%clk 0:03:04]}  Qa8 {[%clk 0:03:01]} 14. Nb5 {[%clk 0:02:54]}  Rc8 {[%clk 0:03:01]} 15. Bd2 {[%clk 0:02:50]}  e6 {[%clk 0:03:01]} 16. dxe6 {[%clk 0:02:46]}  fxe6 {[%clk 0:03:02]} 17. Rhe1 {[%clk 0:02:41]}  d5 {[%clk 0:02:57]} 18. exd5 {[%clk 0:02:39]}  exd5 {[%clk 0:02:58]} 19. Ng5 {[%clk 0:02:23]}  d4+ {[%clk 0:02:39]} 20. Kg1 {[%clk 0:02:21]}  Qd5 {[%clk 0:02:39]} 21. Rad1 {[%clk 0:02:05]}  h6 {[%clk 0:02:33]} 22. Ne4 {[%clk 0:01:54]}  d3 {[%clk 0:02:20]} 23. Nxf6+ {[%clk 0:01:41]}  Bxf6 {[%clk 0:02:21]} 24. Bxh6 {[%clk 0:01:24]}  c4 {[%clk 0:01:49]} 25. Nc3 {[%clk 0:00:50]}  Qh5 {[%clk 0:01:35]} 26. Qd2 {[%clk 0:00:50]}  g5 {[%clk 0:01:30]} 27. Nd5 {[%clk 0:00:37]}  Qxh6 {[%clk 0:01:28]} 28. Ne7+ {[%clk 0:00:37]}  Bxe7 {[%clk 0:01:28]} 29. Rxe7 {[%clk 0:00:38]}  Rd6 {[%clk 0:01:24]} 30. Rde1 {[%clk 0:00:33]}  Qf6 {[%clk 0:01:19]} 31. R1e4 {[%clk 0:00:19]}  Nc5 {[%clk 0:01:09]} 32. R4e5 {[%clk 0:00:16]}  Kf8 {[%clk 0:01:02]} 33. Re1 {[%clk 0:00:02]}  Nb3 {[%clk 0:01:01]} 34. Qe3 {[%clk 0:00:02]}  d2 {[%clk 0:00:44]} 35. Re8+ {[%clk 0:00:02]}  Kg7 {[%clk 0:00:44]} 36. Rxc8 {[%clk 0:00:02]}  dxe1=Q+ {[%clk 0:00:41]} 37. Qxe1 {[%clk 0:00:03]}  Nd4 {[%clk 0:00:39]} 38. Rc7+ {[%clk 0:00:03]}  Kh6 {[%clk 0:00:37]} 39. Qe4 {[%clk 0:00:03]}  Qf5 {[%clk 0:00:28]} 40. Qe7 {[%clk 0:00:02]}  Nf3+ {[%clk 0:00:25]} 41. Kg2 {[%clk 0:00:02]}  Nh4+ {[%clk 0:00:25]} 42. gxh4 {[%clk 0:00:02]}  Qg4+ {[%clk 0:00:26]} 43. Kf1 {[%clk 0:00:03]}  Rd1+ {[%clk 0:00:26]} 44. Qe1 {[%clk 0:00:04]}  Qh3+ {[%clk 0:00:26]} 45. Ke2 {[%clk 0:00:04]}  Qd3# {[%clk 0:00:27]} 0-1


[Site "https://www.chess.com"]

[Event "Titled Tuesday Blitz June 13 Late 2023"]
[White "Zhukov, Maksim"]
[Black "Girsh, Daniel"]
[WhiteFideId "34181790"]
[BlackFideId "30949190"]
[WhiteElo "1925"]
[BlackElo "2075"]
[Result "0-1"]
[Round "2"]
[TimeControl "180+2"]
[Date "2023.06.13"]
[WhiteClock "0:00:43"]
[BlackClock "0:00:37"]
[Board "160"]

1. e4 {[%clk 0:03:00]}  g6 {[%clk 0:02:53]} 2. d4 {[%clk 0:02:59]}  Bg7 {[%clk 0:02:53]} 3. Be3 {[%clk 0:02:59]}  c5 {[%clk 0:02:52]} 4. Ne2 {[%clk 0:02:58]}  Nc6 {[%clk 0:02:50]} 5. c3 {[%clk 0:02:54]}  Qb6 {[%clk 0:02:48]} 6. Qd2 {[%clk 0:02:53]}  d6 {[%clk 0:02:44]} 7. f3 {[%clk 0:02:52]}  Nf6 {[%clk 0:02:40]} 8. Na3 {[%clk 0:02:52]}  cxd4 {[%clk 0:02:37]} 9. Nxd4 {[%clk 0:02:51]}  Nxd4 {[%clk 0:02:35]} 10. Bxd4 {[%clk 0:02:51]}  Qa5 {[%clk 0:02:33]} 11. Bd3 {[%clk 0:02:46]}  O-O {[%clk 0:02:32]} 12. O-O {[%clk 0:02:46]}  Be6 {[%clk 0:02:29]} 13. Rfd1 {[%clk 0:02:44]}  a6 {[%clk 0:02:26]} 14. c4 {[%clk 0:02:42]}  Qxd2 {[%clk 0:02:24]} 15. Rxd2 {[%clk 0:02:43]}  Rfc8 {[%clk 0:02:21]} 16. b3 {[%clk 0:02:40]}  Rab8 {[%clk 0:01:51]} 17. Kf1 {[%clk 0:02:37]}  Nd7 {[%clk 0:01:47]} 18. Bxg7 {[%clk 0:02:36]}  Kxg7 {[%clk 0:01:48]} 19. Rad1 {[%clk 0:02:33]}  Ne5 {[%clk 0:01:47]} 20. Be2 {[%clk 0:02:33]}  g5 {[%clk 0:01:45]} 21. h3 {[%clk 0:02:31]}  h5 {[%clk 0:01:45]} 22. Kf2 {[%clk 0:02:30]}  h4 {[%clk 0:01:45]} 23. Ke3 {[%clk 0:02:30]}  Ng6 {[%clk 0:01:44]} 24. Bf1 {[%clk 0:02:20]}  Nf4 {[%clk 0:01:44]} 25. Kf2 {[%clk 0:02:06]}  f6 {[%clk 0:01:43]} 26. b4 {[%clk 0:01:54]}  b6 {[%clk 0:01:35]} 27. c5 {[%clk 0:01:29]}  bxc5 {[%clk 0:01:32]} 28. Bxa6 {[%clk 0:01:28]}  Rc6 {[%clk 0:01:31]} 29. b5 {[%clk 0:01:27]}  Rcb6 {[%clk 0:01:25]} 30. Nc2 {[%clk 0:01:25]}  Bxa2 {[%clk 0:01:22]} 31. Nd4 {[%clk 0:01:20]}  Bc4 {[%clk 0:01:14]} 32. Nc6 {[%clk 0:01:14]}  Rxc6 {[%clk 0:01:01]} 33. bxc6 {[%clk 0:01:12]}  Bxa6 {[%clk 0:01:01]} 34. Ra1 {[%clk 0:01:10]}  Bc4 {[%clk 0:00:56]} 35. Ra7 {[%clk 0:01:09]}  Kf7 {[%clk 0:00:55]} 36. c7 {[%clk 0:01:09]}  Rc8 {[%clk 0:00:53]} 37. g3 {[%clk 0:01:06]}  hxg3+ {[%clk 0:00:52]} 38. Kxg3 {[%clk 0:01:07]}  Ne6 {[%clk 0:00:53]} 39. Rc2 {[%clk 0:01:05]}  Bd3 {[%clk 0:00:52]} 40. Rc3 {[%clk 0:01:05]}  c4 {[%clk 0:00:52]} 41. h4 {[%clk 0:01:03]}  gxh4+ {[%clk 0:00:52]} 42. Kxh4 {[%clk 0:01:04]}  Rxc7 {[%clk 0:00:52]} 43. Ra1 {[%clk 0:01:00]}  Nf4 {[%clk 0:00:49]} 44. Rca3 {[%clk 0:00:50]}  Ne2 {[%clk 0:00:47]} 45. Rd1 {[%clk 0:00:46]}  c3 {[%clk 0:00:38]} 46. Rxd3 {[%clk 0:00:43]}  c2 {[%clk 0:00:38]} 47. Ra1 {[%clk 0:00:42]}  c1=Q {[%clk 0:00:38]} 48. Rxc1 {[%clk 0:00:42]}  Nxc1 {[%clk 0:00:39]} 49. Re3 {[%clk 0:00:42]}  Rc2 {[%clk 0:00:38]} 50. Kg3 {[%clk 0:00:42]}  Ne2+ {[%clk 0:00:37]} 51. Kf2 {[%clk 0:00:42]}  Nd4+ {[%clk 0:00:37]} 52. Kg3 {[%clk 0:00:40]}  e5 {[%clk 0:00:36]} 53. Ra3 {[%clk 0:00:40]}  Ke6 {[%clk 0:00:35]} 54. Rd3 {[%clk 0:00:39]}  Rc3 {[%clk 0:00:35]} 55. Rxc3 {[%clk 0:00:34]}  Ne2+ {[%clk 0:00:36]} 56. Kf2 {[%clk 0:00:34]}  Nxc3 {[%clk 0:00:36]} 57. Ke3 {[%clk 0:00:35]}  d5 {[%clk 0:00:36]} 58. Kd3 {[%clk 0:00:36]}  dxe4+ {[%clk 0:00:35]} 59. fxe4 {[%clk 0:00:37]}  Nxe4 {[%clk 0:00:34]} 60. Kxe4 {[%clk 0:00:38]}  f5+ {[%clk 0:00:35]} 61. Ke3 {[%clk 0:00:36]}  Kd5 {[%clk 0:00:36]} 62. Ke2 {[%clk 0:00:37]}  Ke4 {[%clk 0:00:36]} 63. Ke1 {[%clk 0:00:38]}  Ke3 {[%clk 0:00:36]} 64. Kd1 {[%clk 0:00:38]}  e4 {[%clk 0:00:37]} 65. Ke1 {[%clk 0:00:39]}  f4 {[%clk 0:00:38]} 66. Kf1 {[%clk 0:00:40]}  Kd2 {[%clk 0:00:38]} 67. Kg2 {[%clk 0:00:40]}  e3 {[%clk 0:00:39]} 68. Kf3 {[%clk 0:00:41]}  e2 {[%clk 0:00:39]} 69. Kg4 {[%clk 0:00:41]}  e1=Q {[%clk 0:00:40]} 70. Kh3 {[%clk 0:00:42]}  f3 {[%clk 0:00:39]} 71. Kh2 {[%clk 0:00:43]}  f2 {[%clk 0:00:40]} 72. Kg3 {[%clk 0:00:41]}  f1=Q+ {[%clk 0:00:38]} 73. Kg4 {[%clk 0:00:42]}  Qe4+ {[%clk 0:00:37]} 74. Kh5 {[%clk 0:00:42]}  Qff5+ {[%clk 0:00:37]} 75. Kh6 {[%clk 0:00:43]}  Qg6# {[%clk 0:00:37]} 0-1


[Site "https://www.chess.com"]

[Event "Titled Tuesday Blitz June 13 Late 2023"]
[White "Haszon, David"]
[Black "Kostiukov, Alexandr"]
[WhiteFideId "733610"]
[BlackFideId "14108100"]
[WhiteElo "2210"]
[BlackElo "2202"]
[Result "1-0"]
[Round "2"]
[TimeControl "180+2"]
[Date "2023.06.13"]
[WhiteClock "0:00:11"]
[BlackClock "0:00:04"]
[Board "161"]

1. e4 {[%clk 0:03:00]}  c5 {[%clk 0:02:58]} 2. Nf3 {[%clk 0:02:58]}  g6 {[%clk 0:02:58]} 3. d4 {[%clk 0:02:55]}  cxd4 {[%clk 0:02:59]} 4. Qxd4 {[%clk 0:02:52]}  Nf6 {[%clk 0:02:58]} 5. c4 {[%clk 0:02:50]}  Nc6 {[%clk 0:02:58]} 6. Qe3 {[%clk 0:02:49]}  d6 {[%clk 0:02:58]} 7. Nc3 {[%clk 0:02:48]}  Bg7 {[%clk 0:02:58]} 8. Be2 {[%clk 0:02:43]}  O-O {[%clk 0:02:58]} 9. h3 {[%clk 0:02:41]}  a6 {[%clk 0:02:50]} 10. O-O {[%clk 0:02:39]}  Rb8 {[%clk 0:02:48]} 11. Rd1 {[%clk 0:02:38]}  Nd7 {[%clk 0:02:26]} 12. Rb1 {[%clk 0:02:23]}  Qa5 {[%clk 0:02:21]} 13. Bd2 {[%clk 0:01:49]}  Qc5 {[%clk 0:02:21]} 14. Qf4 {[%clk 0:01:43]}  Nde5 {[%clk 0:01:52]} 15. Be3 {[%clk 0:01:29]}  Qa5 {[%clk 0:01:34]} 16. a3 {[%clk 0:01:08]}  Nxf3+ {[%clk 0:01:28]} 17. Bxf3 {[%clk 0:00:59]}  Bxc3 {[%clk 0:01:26]} 18. bxc3 {[%clk 0:01:00]}  Qxc3 {[%clk 0:01:26]} 19. h4 {[%clk 0:00:42]}  Qe5 {[%clk 0:01:23]} 20. Qh6 {[%clk 0:00:42]}  Qg7 {[%clk 0:01:19]} 21. Qf4 {[%clk 0:00:42]}  Ne5 {[%clk 0:01:16]} 22. Be2 {[%clk 0:00:40]}  f5 {[%clk 0:01:05]} 23. c5 {[%clk 0:00:33]}  fxe4 {[%clk 0:00:59]} 24. Qxe4 {[%clk 0:00:34]}  Bf5 {[%clk 0:00:59]} 25. Qd5+ {[%clk 0:00:34]}  e6 {[%clk 0:00:59]} 26. Qxd6 {[%clk 0:00:33]}  Bxb1 {[%clk 0:00:59]} 27. Rxb1 {[%clk 0:00:25]}  Nc6 {[%clk 0:00:39]} 28. Qxe6+ {[%clk 0:00:24]}  Kh8 {[%clk 0:00:39]} 29. Bf3 {[%clk 0:00:20]}  Qc7 {[%clk 0:00:31]} 30. Bxc6 {[%clk 0:00:18]}  h6 {[%clk 0:00:13]} 31. Qxg6 {[%clk 0:00:15]}  Qg7 {[%clk 0:00:08]} 32. Qxg7+ {[%clk 0:00:09]}  Kxg7 {[%clk 0:00:08]} 33. Bf3 {[%clk 0:00:09]}  Rfc8 {[%clk 0:00:07]} 34. Bd4+ {[%clk 0:00:09]}  Kg6 {[%clk 0:00:07]} 35. Rxb7 {[%clk 0:00:10]}  Rxb7 {[%clk 0:00:04]} 36. Bxb7 {[%clk 0:00:11]} 1-0


[Site "https://www.chess.com"]